fUSD/lending_fUSD_20241002
["ID","MTS","AMOUNT","RATE_DAILY","PERIOD"]
[339694062,1727869870833,-330.68,0.00022465,2]
[339694063,1727869870843,-2569.52,0.00022465,2]
[339694064,1727869870852,-3554.36,0.00022465,2]
[339694065,1727869870862,-500.0,0.00022465,2]
[339694066,1727869870871,-1114.6,0.00022465,2]
[339694067,1727869870881,-500.0,0.00022465,2]
[339694068,1727869870890,-2281.6,0.00022465,2]
[339694069,1727869870900,-500.0,0.00022465,2]
[339694070,1727869870908,-2024.94,0.00022465,2]
[339694071,1727869870919,-1898.19,0.00022465,2]
[339694072,1727869870930,-2537.56,0.00022465,2]
[339694073,1727869870940,-500.0,0.00022465,2]
[339694074,1727869870949,-500.0,0.00022465,2]
[339694075,1727869870959,-500.0,0.00022465,2]
[339694076,1727869870971,-628.45,0.00022465,2]
[339694077,1727869870981,-531.82,0.00022465,2]
[339694078,1727869870991,-1115.9,0.00022465,2]
[339694079,1727869871001,-769.35,0.00022465,2]
[339694080,1727869871010,-637.83,0.00022465,2]
[339694081,1727869871020,-1589.06,0.00022465,2]
[339694082,1727869871030,-500.0,0.00022465,2]
[339694083,1727869871039,-690.75,0.00022465,2]
[339694084,1727869871048,-1606.12,0.00022465,2]
[339694085,1727869871058,-2547.67,0.00022465,2]
[339694086,1727869871067,-500.0,0.00022465,2]
[339694087,1727869871077,-500.0,0.00022465,2]
[339694088,1727869871087,-500.0,0.00022465,2]
[339694089,1727869871096,-833.08,0.00022465,2]
[339694090,1727869871107,-1174.4,0.00022465,2]
[339694091,1727869871116,-500.0,0.00022465,2]
[339694092,1727869871125,-2149.44,0.00022465,2]
[339694093,1727869871136,-628.01,0.00022465,2]
[339694094,1727869871146,-500.0,0.00022465,2]
[339694095,1727869871156,-846.9,0.00022465,2]
[339694096,1727869871165,-863.26,0.00022465,2]
[339694097,1727869871483,-651.99,0.00022465,2]
[339694098,1727869871497,-500.0,0.00022465,2]
[339694099,1727869871507,-500.0,0.00022465,2]
[339694100,1727869871516,-2757.68,0.00022465,2]
[339694101,1727869871526,-500.0,0.00022465,2]
[339694102,1727869871535,-500.0,0.00022465,2]
[339694103,1727869871546,-603.14,0.00022465,2]
[339694104,1727869871557,-1696.1,0.00022465,2]
[339694105,1727869871567,-985.26,0.00022465,2]
[339694106,1727869871577,-500.0,0.00022465,2]
[339694107,1727869871588,-300.0,0.00022465,2]
[339694108,1727869871598,-500.0,0.00022465,2]
[339694109,1727869871608,-653.8,0.00022465,2]
[339694110,1727869871618,-1267.6,0.00022465,2]
[339694111,1727869871628,-3039.66,0.00022465,2]
[339694112,1727869871639,-500.0,0.00022465,2]
[339694113,1727869871648,-500.0,0.00022465,2]
[339694114,1727869871658,-500.0,0.00022465,2]
[339694115,1727869871668,-500.0,0.00022465,2]
[339694116,1727869871678,-1289.3,0.00022465,2]
[339694117,1727869871688,-2047.61,0.00022465,2]
[339694118,1727869871697,-1504.84,0.00022465,2]
[339694119,1727869871707,-981.63,0.00022465,2]
[339694120,1727869871719,-500.0,0.00022465,2]
[339694121,1727869871730,-500.0,0.00022465,2]
[339694122,1727869871740,-854.69,0.00022465,2]
[339694123,1727869871749,-500.0,0.00022465,2]
[339694124,1727869871759,-500.0,0.00022465,2]
[339694125,1727869871769,-500.0,0.00022465,2]
[339694126,1727869871778,-1547.4,0.00022465,2]
[339694127,1727869871788,-500.0,0.00022465,2]
[339694128,1727869871799,-500.0,0.00022465,2]
[339694129,1727869871809,-619.86949403,0.00022465,2]
[339694130,1727869871819,-1749.84,0.00022465,2]
[339694131,1727869871828,-1355.56,0.00022465,2]
[339694132,1727869871837,-1502.59,0.00022465,2]
[339694133,1727869871847,-1145.46,0.00022465,2]
[339694134,1727869871856,-2100.16,0.00022465,2]
[339694135,1727869871866,-1280.36,0.00022465,2]
[339694136,1727869871875,-500.0,0.00022465,2]
[339694137,1727869871885,-3721.85,0.00022465,2]
[339694138,1727869871895,-2297.01,0.00022465,2]
[339694139,1727869871905,-525.24,0.00022465,2]
[339694140,1727869871914,-500.0,0.00022465,2]
[339694141,1727869871926,-500.0,0.00022465,2]
[339694142,1727869871936,-500.0,0.00022465,2]
[339694143,1727869871948,-1550.17,0.00022465,2]
[339694144,1727869871959,-500.0,0.00022465,2]
[339694145,1727869871970,-1243.26,0.00022465,2]
[339694146,1727869871979,-500.0,0.00022465,2]
[339694147,1727869871989,-500.0,0.00022465,2]
[339694148,1727869871999,-500.0,0.00022465,2]
[339694149,1727869872010,-168.75486575,0.00022465,2]
[339694150,1727869872019,-551.95590658,0.00022465,2]
[339694151,1727869872031,-500.0,0.00022465,2]
[339694152,1727869872041,-500.0,0.00022465,2]
[339694153,1727869872050,-1732.3,0.00022465,2]
[339694154,1727869872060,-500.0,0.00022465,2]
[339694155,1727869872069,-924.39,0.00022465,2]
[339694156,1727869872079,-500.0,0.00022465,2]
[339694157,1727869872089,-500.0,0.00022465,2]
[339694158,1727869872098,-500.0,0.00022465,2]
[339694159,1727869872108,-1860.9,0.00022465,2]
[339694160,1727869872117,-1136.61,0.00022465,2]
[339694161,1727869872126,-2892.79,0.00022465,2]
[339694162,1727869872137,-500.0,0.00022465,2]
[339694163,1727869872146,-1271.74,0.00022465,2]
[339694164,1727869872157,-2319.1,0.00022465,2]
[339694165,1727869872166,-1091.67,0.00022465,2]
[339694166,1727869872176,-1380.93,0.00022465,2]
[339694167,1727869872186,-516.76,0.00022465,2]
[339694168,1727869872197,-500.0,0.00022465,2]
[339694169,1727869872206,-500.0,0.00022465,2]
[339694170,1727869872216,-500.0,0.00022465,2]
[339694171,1727869872227,-1681.47,0.00022465,2]
[339694172,1727869872236,-551.68,0.00022465,2]
[339694173,1727869872246,-1011.97,0.00022465,2]
[339694174,1727869872256,-500.0,0.00022465,2]
[339694175,1727869872266,-595.76,0.00022465,2]
[339694176,1727869872275,-4234.94,0.00022465,2]
[339694177,1727869872285,-505.77717288,0.00022465,2]
[339694178,1727869872295,-500.0,0.00022465,2]
[339694179,1727869872305,-807.3,0.00022465,2]
[339694180,1727869872314,-767.29,0.00022465,2]
[339694181,1727869872324,-500.0,0.00022465,2]
[339694182,1727869872334,-4437.35,0.00022465,2]
[339694183,1727869872344,-500.0,0.00022465,2]
[339694184,1727869872354,-500.0,0.00022465,2]
[339694185,1727869872363,-681.37,0.00022465,2]
[339694186,1727869872373,-500.0,0.00022465,2]
[339694187,1727869872383,-500.0,0.00022465,2]
[339694188,1727869872394,-810.27,0.00022465,2]
[339694189,1727869872403,-500.0,0.00022465,2]
[339694190,1727869872414,-2090.86,0.00022465,2]
[339694191,1727869872425,-500.0,0.00022465,2]
[339694192,1727869872435,-1262.83,0.00022465,2]
[339694193,1727869872446,-500.0,0.00022465,2]
[339694194,1727869872456,-1313.14,0.00022465,2]
[339694195,1727869872466,-1018.63,0.00022465,2]
[339694196,1727869872478,-504.51,0.00022465,2]
[339694197,1727869872488,-570.29,0.00022465,2]
[339694198,1727869872499,-736.45,0.00022465,2]
[339694199,1727869872508,-953.5,0.00022465,2]
[339694200,1727869872520,-598.89,0.00022465,2]
[339694201,1727869872530,-1201.78,0.00022465,2]
[339694202,1727869872540,-500.0,0.00022465,2]
[339694203,1727869872551,-500.0,0.00022465,2]
[339694204,1727869872561,-500.0,0.00022465,2]
[339694205,1727869872573,-4680.19,0.00022465,2]
[339694206,1727869872583,-892.18,0.00022465,2]
[339694207,1727869872594,-679.8,0.00022465,2]
[339694208,1727869872604,-690.14,0.00022465,2]
[339694209,1727869872614,-500.0,0.00022465,2]
[339694210,1727869872626,-500.0,0.00022465,2]
[339694211,1727869872636,-1031.13,0.00022465,2]
[339694212,1727869872647,-500.0,0.00022465,2]
[339694213,1727869872657,-2119.21,0.00022465,2]
[339694214,1727869872667,-3248.18,0.00022465,2]
[339694215,1727869872676,-500.0,0.00022465,2]
[339694216,1727869872686,-500.0,0.00022465,2]
[339694217,1727869872696,-500.0,0.00022465,2]
[339694218,1727869872706,-500.0,0.00022465,2]
[339694219,1727869872717,-6175.19,0.00022465,2]
[339694220,1727869872727,-500.0,0.00022465,2]
[339694221,1727869872736,-500.0,0.00022465,2]
[339694222,1727869872746,-1838.42,0.00022465,2]
[339694223,1727869872757,-507.21,0.00022465,2]
[339694224,1727869872767,-2667.03,0.00022465,2]
[339694225,1727869872776,-500.0,0.00022465,2]
[339694226,1727869872787,-500.0,0.00022465,2]
[339694227,1727869872796,-500.0,0.00022465,2]
[339694228,1727869872806,-533.45019061,0.00022465,2]
[339694229,1727869872816,-1672.93,0.00022465,2]
[339694230,1727869872826,-500.0,0.00022465,2]
[339694231,1727869872836,-500.0,0.00022465,2]
[339694232,1727869872846,-500.0,0.00022465,2]
[339694233,1727869872856,-1041.73,0.00022465,2]
[339694234,1727869872866,-608.41,0.00022465,2]
[339694235,1727869872875,-529.98,0.00022465,7]
[339694236,1727869872885,-500.0,0.00022465,2]
[339694237,1727869872894,-5053.49,0.00022465,2]
[339694238,1727869872904,-500.0,0.00022465,2]
[339694239,1727869872913,-2022.31,0.00022465,2]
[339694240,1727869872924,-500.0,0.00022465,2]
[339694241,1727869872933,-500.0,0.00022465,2]
[339694242,1727869872943,-500.0,0.00022465,2]
[339694243,1727869872953,-500.0,0.00022465,2]
[339694244,1727869872962,-500.0,0.00022465,2]
[339694245,1727869872974,-500.0,0.00022465,2]
[339694246,1727869872984,-500.0,0.00022465,2]
[339694247,1727869872993,-500.0,0.00022465,2]
[339694248,1727869873006,-500.0,0.00022465,2]
[339694249,1727869873016,-1730.57,0.00022465,2]
[339694250,1727869873025,-500.0,0.00022465,2]
[339694251,1727869873034,-538.29,0.00022465,30]
[339694252,1727869873044,-4318.93,0.00022465,2]
[339694253,1727869873055,-2246.33,0.00022465,2]
[339694254,1727869873066,-342.84744318,0.00022465,2]
[339694255,1727869873075,-1020.6,0.00022465,2]
[339694256,1727869873086,-500.0,0.00022465,2]
[339694257,1727869873097,-500.0,0.00022465,2]
[339694258,1727869873107,-500.0,0.00022465,2]
[339694259,1727869873117,-500.0,0.00022465,2]
[339694260,1727869873126,-500.0,0.00022465,2]
[339694261,1727869873137,-500.0,0.00022465,2]
[339694262,1727869873146,-3153.21,0.00022465,2]
[339694263,1727869873156,-500.0,0.00022465,2]
[339694264,1727869873166,-506.11,0.00022465,2]
[339694265,1727869873176,-712.16,0.00022465,2]
[339694266,1727869873186,-985.3,0.00022465,2]
[339694267,1727869873195,-2970.4,0.00022465,2]
[339694268,1727869873205,-2465.15,0.00022465,2]
[339694269,1727869873215,-2086.78,0.00022465,2]
[339694270,1727869873225,-500.0,0.00022465,2]
[339694271,1727869873235,-500.0,0.00022465,2]
[339694272,1727869873245,-1090.88,0.00022465,2]
[339694273,1727869873254,-500.0,0.00022465,2]
[339694274,1727869873264,-500.0,0.00022465,2]
[339694275,1727869873274,-500.0,0.00022465,2]
[339694276,1727869873284,-500.0,0.00022465,2]
[339694277,1727869873294,-895.01,0.00022465,2]
[339694278,1727869873303,-777.65,0.00022465,2]
[339694279,1727869873312,-3118.93,0.00022465,2]
[339694280,1727869873322,-987.1,0.00022465,2]
[339694281,1727869873332,-306.07220749,0.00022465,2]
[339694282,1727869873341,-500.0,0.00022465,2]
[339694283,1727869873351,-1136.65,0.00022465,2]
[339694284,1727869873361,-500.0,0.00022465,2]
[339694285,1727869873371,-500.0,0.00022465,2]
[339694286,1727869873381,-1467.44,0.00022465,2]
[339694287,1727869873390,-1162.12,0.00022465,2]
[339694288,1727869873399,-500.0,0.00022465,2]
[339694289,1727869873410,-506.89,0.00022465,2]
[339694290,1727869873419,-500.0,0.00022465,2]
[339694291,1727869873429,-500.0,0.00022465,2]
[339694292,1727869873438,-500.0,0.00022465,2]
[339694293,1727869873448,-500.0,0.00022465,2]
[339694294,1727869873457,-579.97,0.00022465,2]
[339694295,1727869873467,-500.0,0.00022465,2]
[339694296,1727869873477,-940.83,0.00022465,2]
[339694297,1727869873487,-500.0,0.00022465,2]
[339694298,1727869873496,-500.0,0.00022465,2]
[339694299,1727869873506,-500.0,0.00022465,2]
[339694300,1727869873516,-500.0,0.00022465,2]
[339694301,1727869873526,-1971.31,0.00022465,2]
[339694302,1727869873536,-500.0,0.00022465,2]
[339694303,1727869873546,-500.0,0.00022465,2]
[339694304,1727869873556,-1121.76,0.00022465,2]
[339694305,1727869873566,-623.67,0.00022465,2]
[339694306,1727869873575,-2765.39,0.00022465,2]
[339694307,1727869873585,-1361.74,0.00022465,2]
[339694308,1727869873594,-965.87,0.00022465,2]
[339694309,1727869873604,-2074.26,0.00022465,2]
[339694310,1727869873615,-1445.85,0.00022465,2]
[339694311,1727869873625,-771.13,0.00022465,2]
[339694312,1727869873634,-552.97540469,0.00022465,2]
[339694313,1727869873645,-500.0,0.00022465,2]
[339694314,1727869873654,-500.0,0.00022465,2]
[339694315,1727869873664,-500.0,0.00022465,2]
[339694316,1727869873674,-998.13,0.00022465,2]
[339694317,1727869873685,-2391.46,0.00022465,2]
[339694318,1727869873694,-2900.51,0.00022465,2]
[339694319,1727869873703,-2290.5,0.00022465,2]
[339694320,1727869873713,-500.0,0.00022465,2]
[339694321,1727869873723,-500.0,0.00022465,2]
[339694322,1727869873732,-500.0,0.00022465,2]
[339694323,1727869873742,-751.75,0.00022465,2]
[339694324,1727869873751,-500.0,0.00022465,2]
[339694325,1727869873761,-500.0,0.00022465,2]
[339694326,1727869873771,-1477.46,0.00022465,2]
[339694327,1727869873780,-500.0,0.00022465,2]
[339694328,1727869873789,-1360.75,0.00022465,2]
[339694329,1727869873799,-500.0,0.00022465,2]
[339694330,1727869873809,-1781.17,0.00022465,2]
[339694331,1727869873818,-1019.35,0.00022465,2]
[339694332,1727869873827,-1434.88,0.00022465,2]
[339694333,1727869873837,-500.0,0.00022465,2]
[339694334,1727869873845,-700.73,0.00022465,2]
[339694335,1727869873855,-500.0,0.00022465,2]
[339694336,1727869873864,-864.57,0.00022465,2]
[339694337,1727869873874,-500.0,0.00022465,2]
[339694338,1727869873883,-924.55,0.00022465,2]
[339694339,1727869873893,-1589.64,0.00022465,2]
[339694340,1727869873902,-500.0,0.00022465,2]
[339694341,1727869874007,-305.62917992,0.00022465,2]
[339694342,1727869874017,-500.0,0.00022465,2]
[339694343,1727869874026,-3116.69,0.00022465,2]
[339694344,1727869874035,-1543.89,0.00022465,2]
[339694345,1727869874043,-4404.8,0.00022465,2]
[339694346,1727869874053,-19290.58,0.00022465,2]
[339694347,1727869874063,-560.29,0.00022465,2]
[339694348,1727869874072,-614.13,0.00022465,2]
[339694349,1727869874081,-2831.71,0.00022465,2]
[339694350,1727869874091,-1040.87,0.00022465,2]
[339694351,1727869874100,-1535.99,0.00022465,2]
[339694352,1727869874110,-500.0,0.00022465,2]
[339694353,1727869874119,-500.0,0.00022465,2]
[339694354,1727869874127,-1223.94,0.00022465,2]
[339694355,1727869874137,-610.3,0.00022465,2]
[339694356,1727869874146,-500.0,0.00022465,2]
[339694357,1727869874156,-500.0,0.00022465,2]
[339694358,1727869874165,-658.85,0.00022465,2]
[339694359,1727869874175,-500.0,0.00022465,2]
[339694360,1727869874184,-551.95,0.00022465,2]
[339694361,1727869874194,-1515.98,0.00022465,2]
[339694362,1727869874203,-729.29,0.00022465,2]
[339694363,1727869874212,-579.63,0.00022465,2]
[339694364,1727869874224,-1288.21,0.00022465,2]
[339694365,1727869874234,-500.0,0.00022465,2]
[339694366,1727869874243,-1133.36,0.00022465,2]
[339694367,1727869874253,-1772.2,0.00022465,2]
[339694368,1727869874262,-500.0,0.00022465,2]
[339694369,1727869874271,-507.18,0.00022465,2]
[339694370,1727869874281,-1312.48,0.00022465,2]
[339694371,1727869874290,-500.0,0.00022465,2]
[339694372,1727869874299,-701.64,0.00022465,2]
[339694373,1727869874309,-665.99,0.00022465,2]
[339694374,1727869874318,-598.59,0.00022465,2]
[339694375,1727869874327,-808.47,0.00022465,2]
[339694376,1727869874337,-500.0,0.00022465,2]
[339694377,1727869874346,-513.44,0.00022465,2]
[339694378,1727869874355,-500.0,0.00022465,2]
[339694379,1727869874364,-500.0,0.00022465,2]
[339694380,1727869874374,-1157.26,0.00022465,2]
[339694381,1727869874384,-647.94,0.00022465,2]
[339694382,1727869874393,-500.0,0.00022465,2]
[339694383,1727869874402,-587.79,0.00022465,2]
[339694384,1727869874410,-500.0,0.00022465,2]
[339694385,1727869874420,-500.0,0.00022465,2]
[339694386,1727869874429,-2470.24,0.00022465,2]
[339694387,1727869874438,-553.22,0.00022465,2]
[339694388,1727869874446,-500.0,0.00022465,2]
[339694389,1727869874455,-934.27,0.00022465,2]
[339694390,1727869874465,-500.0,0.00022465,2]
[339694391,1727869874478,-727.36,0.00022465,2]
[339694392,1727869874487,-502.15081269,0.00022465,2]
[339694393,1727869874495,-648.66,0.00022465,2]
[339694394,1727869874504,-521.34,0.00022465,2]
[339694395,1727869874512,-849.78,0.00022465,2]
[339694396,1727869874521,-1657.63,0.00022465,2]
[339694397,1727869874530,-500.0,0.00022465,2]
[339694398,1727869874539,-3112.95,0.00022465,2]
[339694399,1727869874548,-1267.73,0.00022465,2]
[339694400,1727869874558,-500.0,0.00022465,2]
[339694401,1727869874568,-678.87,0.00022465,2]
[339694402,1727869874578,-515.08,0.00022465,2]
[339694403,1727869874589,-812.97,0.00022465,2]
[339694404,1727869874599,-575.05,0.00022465,2]
[339694405,1727869874608,-1574.1,0.00022465,2]
[339694406,1727869874618,-993.91,0.00022465,2]
[339694407,1727869874628,-1526.73,0.00022465,2]
[339694408,1727869874638,-500.0,0.00022465,2]
[339694409,1727869874649,-1049.52,0.00022465,2]
[339694410,1727869874659,-500.0,0.00022465,2]
[339694411,1727869874668,-500.0,0.00022465,2]
[339694412,1727869874678,-500.0,0.00022465,2]
[339694413,1727869874688,-1970.75,0.00022465,2]
[339694414,1727869874697,-500.0,0.00022465,2]
[339694415,1727869874707,-518.95,0.00022465,2]
[339694416,1727869874717,-500.0,0.00022465,2]
[339694417,1727869874737,-3520.63,0.00022465,2]
[339694418,1727869874747,-530.32,0.00022465,2]
[339694419,1727869874757,-500.0,0.00022465,2]
[339694420,1727869874769,-1403.56,0.00022465,2]
[339694421,1727869874778,-500.0,0.00022465,2]
[339694422,1727869874788,-500.0,0.00022465,2]
[339694423,1727869874798,-500.0,0.00022465,2]
[339694424,1727869874807,-1522.21,0.00022465,2]
[339694425,1727869874817,-500.0,0.00022465,2]
[339694426,1727869874826,-3091.29,0.00022465,2]
[339694427,1727869874836,-500.0,0.00022465,2]
[339694428,1727869874846,-500.0,0.00022465,2]
[339694429,1727869874856,-1354.75,0.00022465,2]
[339694430,1727869874865,-500.0,0.00022465,2]
[339694431,1727869874875,-500.0,0.00022465,2]
[339694432,1727869874885,-500.0,0.00022465,2]
[339694433,1727869874894,-988.48,0.00022465,2]
[339694434,1727869874904,-711.34,0.00022465,2]
[339694435,1727869874913,-825.42,0.00022465,2]
[339694436,1727869874925,-876.88,0.00022465,2]
[339694437,1727869874935,-1618.37,0.00022465,2]
[339694438,1727869874946,-833.27,0.00022465,2]
[339694439,1727869874957,-5815.04,0.00022465,2]
[339694440,1727869874973,-500.0,0.00022465,2]
[339694441,1727869874986,-1031.29,0.00022465,2]
[339694442,1727869874997,-500.0,0.00022465,2]
[339694443,1727869875007,-500.0,0.00022465,2]
[339694444,1727869875017,-1965.03,0.00022465,2]
[339694445,1727869875026,-500.0,0.00022465,2]
[339694446,1727869875036,-3064.09,0.00022465,2]
[339694447,1727869875045,-4974.41,0.00022465,2]
[339694448,1727869875054,-844.64,0.00022465,2]
[339694449,1727869875063,-823.54,0.00022465,2]
[339694450,1727869875091,-2331.34,0.00022465,2]
[339694451,1727869875100,-1132.69,0.00022465,2]
[339694452,1727869875109,-552.96,0.00022465,2]
[339694453,1727869875118,-500.0,0.00022465,2]
[339694454,1727869875127,-1148.88,0.00022465,2]
[339694455,1727869875136,-2974.28,0.00022465,2]
[339694456,1727869875146,-500.0,0.00022465,2]
[339694457,1727869875155,-968.97,0.00022465,2]
[339694458,1727869875164,-500.0,0.00022465,2]
[339694459,1727869875173,-3001.6,0.00022465,2]
[339694460,1727869875182,-500.0,0.00022465,2]
[339694461,1727869875191,-248.99043338,0.00022465,2]
[339694462,1727869875201,-1264.99,0.00022465,2]
[339694463,1727869875210,-500.0,0.00022465,2]
[339694464,1727869875220,-500.0,0.00022465,2]
[339694465,1727869875236,-726.05,0.00022465,2]
[339694466,1727869875247,-500.0,0.00022465,2]
[339694467,1727869875256,-3619.58,0.00022465,2]
[339694468,1727869875265,-604.79,0.00022465,2]
[339694469,1727869875275,-1051.14,0.00022465,2]
[339694470,1727869875284,-500.0,0.00022465,2]
[339694471,1727869875293,-3602.22,0.00022465,2]
[339694472,1727869875302,-2687.13,0.00022465,2]
[339694473,1727869875311,-1390.28,0.00022465,2]
[339694474,1727869875321,-1118.51,0.00022465,2]
[339694475,1727869875330,-5879.71,0.00022465,2]
[339694476,1727869875339,-500.0,0.00022465,2]
[339694477,1727869875348,-526.33,0.00022465,2]
[339694478,1727869875357,-500.0,0.00022465,2]
[339694479,1727869875367,-461.67427686,0.00022465,2]
[339694480,1727869875377,-816.38,0.00022465,2]
[339694481,1727869875386,-500.0,0.00022465,2]
[339694482,1727869875395,-4254.33,0.00022465,2]
[339694483,1727869875405,-4061.83,0.00022465,2]
[339694484,1727869875415,-1959.33,0.00022465,2]
[339694485,1727869875424,-500.0,0.00022465,2]
[339694486,1727869875434,-1345.45,0.00022465,2]
[339694487,1727869875444,-500.0,0.00022465,2]
[339694488,1727869875453,-500.0,0.00022465,2]
[339694489,1727869875463,-1447.78,0.00022465,2]
[339694490,1727869875474,-1075.93,0.00022465,2]
[339694491,1727869875483,-500.0,0.00022465,2]
[339694492,1727869875492,-1481.56,0.00022465,2]
[339694493,1727869875502,-519.77,0.00022465,2]
[339694494,1727869875511,-500.0,0.00022465,2]
[339694495,1727869875520,-500.0,0.00022465,2]
[339694496,1727869875530,-4444.78,0.00022465,2]
[339694497,1727869875539,-1469.09,0.00022465,2]
[339694498,1727869875549,-626.6,0.00022465,2]
[339694499,1727869875558,-2996.05,0.00022465,2]
[339694500,1727869875567,-3273.31,0.00022465,2]
[339694501,1727869875576,-613.77,0.00022465,2]
[339694502,1727869875586,-500.0,0.00022465,2]
[339694503,1727869875595,-500.0,0.00022465,2]
[339694504,1727869875605,-500.0,0.00022465,2]
[339694505,1727869875614,-500.0,0.00022465,2]
[339694506,1727869875624,-958.03,0.00022465,2]
[339694507,1727869875634,-707.05,0.00022465,2]
[339694508,1727869875644,-500.0,0.00022465,2]
[339694509,1727869875654,-500.0,0.00022465,2]
[339694510,1727869875663,-500.0,0.00022465,2]
[339694511,1727869875673,-3800.36,0.00022465,2]
[339694512,1727869875683,-528.33,0.00022465,2]
[339694513,1727869875693,-500.0,0.00022465,2]
[339694514,1727869875703,-10132.33,0.00022465,2]
[339694515,1727869875713,-888.35,0.00022465,2]
[339694516,1727869875722,-1216.89,0.00022465,2]
[339694517,1727869875732,-500.0,0.00022465,2]
[339694518,1727869875741,-542.56,0.00022465,2]
[339694519,1727869875750,-500.0,0.00022465,2]
[339694520,1727869875759,-1117.3,0.00022465,2]
[339694521,1727869875768,-1033.85,0.00022465,2]
[339694522,1727869875777,-1287.56,0.00022465,2]
[339694523,1727869875787,-500.0,0.00022465,2]
[339694524,1727869875796,-6495.52,0.00022465,2]
[339694525,1727869875805,-1020.29,0.00022465,2]
[339694526,1727869875814,-3352.77,0.00022465,2]
[339694527,1727869875823,-3430.38,0.00022465,2]
[339694528,1727869875832,-500.0,0.00022465,2]
[339694529,1727869875842,-500.0,0.00022465,2]
[339694530,1727869875852,-1117.24,0.00022465,2]
[339694531,1727869875861,-615.79272543,0.00022465,2]
[339694532,1727869875871,-500.0,0.00022465,2]
[339694533,1727869875879,-1132.56,0.00022465,2]
[339694534,1727869875888,-880.57,0.00022465,2]
[339694535,1727869875898,-707.2,0.00022465,2]
[339694536,1727869875908,-502.16,0.00022465,2]
[339694537,1727869875918,-3228.99,0.00022465,2]
[339694538,1727869875934,-500.0,0.00022465,2]
[339694539,1727869875943,-682.74,0.00022465,2]
[339694540,1727869875953,-738.51,0.00022465,2]
[339694541,1727869875963,-500.0,0.00022465,2]
[339694542,1727869875972,-968.42,0.00022465,2]
[339694543,1727869875982,-500.0,0.00022465,2]
[339694544,1727869875990,-2448.54,0.00022465,2]
[339694545,1727869876000,-1406.54,0.00022465,2]
[339694546,1727869876011,-848.81,0.00022465,2]
[339694547,1727869876020,-1709.53,0.00022465,2]
[339694548,1727869876029,-500.0,0.00022465,2]
[339694549,1727869876039,-500.0,0.00022465,2]
[339694550,1727869876048,-1553.71,0.00022465,2]
[339694551,1727869876057,-1194.43,0.00022465,2]
[339694552,1727869876066,-628.44,0.00022465,2]
[339694553,1727869876076,-500.0,0.00022465,2]
[339694554,1727869876085,-851.07,0.00022465,2]
[339694555,1727869876094,-1000.0,0.00022466,2]
[339694556,1727869876104,-500.0,0.00022507,15]
[339694557,1727869876113,-500.0,0.00022507,2]
[339694558,1727869876122,-501.48,0.00022507,2]
[339694559,1727869876131,-500.0,0.00022507,2]
[339694560,1727869876141,-811.94,0.00022507,2]
[339694561,1727869876149,-500.0,0.00022507,2]